{"text_format":"1","workbook":"xlsx","n_sheets":2,"sheets":["Couleurs","A"],"not_rendered":{"charts":0,"images":0,"macros":1,"external_links":1,"defined_names":4,"comments":0,"pivot_tables":0},"unopened":[],"bounds":{"document_bytes":16777216,"sheet_cells":100000,"rows_first":2000,"rows_last":500,"rows_between":2000,"halvings":0,"cell_chars":16384,"cell_head_chars":4096},"cells_cut":0,"cells_raw":0,"read":"whole","date_system":"1900"}

{"sheet":"Couleurs","index":0,"n_rows":33,"n_cols":3,"rows_kept":33,"cut":false,"hidden":false,"merged":[]}
["6h30/8h00",null,2017]
["6h30/14h30"]
["7h00/9h00"]
["8h00/10h00"]
["9h00/11h00"]
["9h00/17h00"]
["10h00/12h00"]
["11h00/13h00"]
["13h00/15h00"]
["13h30/15h30"]
["14h00/16h00"]
["15h00/17h00"]
["16H00/18H00"]
["17h00/19h00"]
["18h00/20h00"]
["19h00/21h00"]
["21h00/23h00"]
["22h00/23h00"]
[]
[]
[]
[]
[]
[]
[]
[]
[]
[]
[]
[]
[]
["G"]
["C"]

{"sheet":"A","index":1,"n_rows":96,"n_cols":25,"rows_kept":96,"cut":false,"hidden":false,"merged":[[0,1,0,21],[1,22,1,24],[94,20,95,20],[1,1,1,21],[94,1,95,1],[94,2,94,4],[94,5,94,7],[94,8,94,10],[94,11,94,13],[94,14,94,16],[94,17,95,17],[94,18,95,18],[94,19,95,19]]}
[null,"A"]
[null,12,null,null,null,null,null,null,null,null,null,null,null,null,null,null,null,null,null,null,null,null,{"$f":"IF(S95+T95<>R95,\"FAUX\",\"OK\")","v":"FAUX"}]
[null,null,null,null,null,null,null,null,null,null,null,null,null,null,null,null,null,null,null,null,null,null,"Total","G","C"]
[null,"Noms",{"$f":"IF(ISNUMBER(B2),7*B2+DATE(Année,1,3)-WEEKDAY(DATE(Année,1,3))-5,\"\")","v":"2017-03-20"},"G","C",{"$f":"C4+1","v":"2017-03-21"},"G","C",{"$f":"F4+1","v":"2017-03-22"},"G","C",{"$f":"I4+1","v":"2017-03-23"},"G","C",{"$f":"L4+1","v":"2017-03-24"},"G","C","Total","G","C","Abs",null,{"$f":"R95","v":3},{"$f":"S95","v":2},{"$f":"T95","v":2}]
[null,null,null,null,null,null,null,null,null,null,null,null,null,null,null,null,null,{"$f":"somcoul(C5:Q5,\"rouge\")","v":0},{"$f":"COUNTIF(C5:Q5,(\"g\"))","v":0},{"$f":"COUNTIF(C5:Q5,(\"c\"))","v":0},{"$f":"COUNTIF(C5:Q5,\"abs\")","v":0}]
[null,null,null,null,null,null,null,null,null,null,null,null,null,null,null,null,null,{"$f":"somcoul(C6:Q6,\"rouge\")","v":0},{"$f":"COUNTIF(C6:Q6,(\"g\"))","v":0},{"$f":"COUNTIF(C6:Q6,(\"c\"))","v":0},{"$f":"COUNTIF(C6:Q6,\"abs\")","v":0}]
[null,"C'est FAUX","10h00/12h00","G","C",null,null,null,null,null,null,null,null,null,null,null,null,1,1,1,0]
[null,null,null,null,null,null,null,null,null,null,null,null,null,null,null,null,null,0,0,0,0]
[null,null,null,null,null,null,null,null,null,null,null,null,null,null,null,null,null,0,0,0,0]
[null,"C'est OK","16H00/18H00","G",null,null,null,null,null,null,null,null,null,null,null,null,null,1,1,0,0]
[null,null,null,null,null,null,null,null,null,null,null,null,null,null,null,null,null,0,0,0,0]
[null,"C'est OK","15h00/17h00",null,"C",null,null,null,null,null,null,null,null,null,null,null,null,1,0,1,0]
[null,null,null,null,null,null,null,null,null,null,null,null,null,null,null,null,null,0,0,0,0," ",null," "]
[null,null,null,null,null,null,null,null,null,null,null,null,null,null,null,null,null,0,0,0,0]
[null,null,null,null,null,null,null,null,null,null,null,null,null,null,null,null,null,0,0,0,0]
[null,null,null,null,null,null,null,null,null,null,null,null,null,null,null,null,null,0,0,0,0]
[null,null,null,null,null,null,null,null,null,null,null,null,null,null,null,null,null,0,0,0,0]
[null,null,null,null,null,null,null,null,null,null,null,null,null,null,null,null,null,0,0,0,0]
[null,null,null,null,null,null,null,null,null,null,null,null,null,null,null,null,null,0,0,0,0]
[null,null,null,null,null,null,null,null,null,null,null,null,null,null,null,null,null,0,0,0,0]
[null,null,null,null,null,null,null,null,null,null,null,null,null,null,null,null,null,0,0,0,0]
[null,null,null,null,null,null,null,null,null,null,null,null,null,null,null,null,null,0,0,0,0]
[null,null,null,null,null,null,null,null,null,null,null,null,null,null,null,null,null,0,0,0,0]
[null,null,null,null,null,null,null,null,null,null,null,null,null,null,null,null,null,0,0,0,0]
[null,null,null,null,null,null,null,null,null,null,null,null,null,null,null,null,null,0,0,0,0]
[null,null,null,null,null,null,null,null,null,null,null,null,null,null,null,null,null,0,0,0,0]
[null,null,null,null,null,null,null,null,null,null,null,null,null,null,null,null,null,0,0,0,0]
[null,null,null,null,null,null,null,null,null,null,null,null,null,null,null,null,null,0,0,0,0]
[null,null,null,null,null,null,null,null,null,null,null,null,null,null,null,null,null,0,0,0,0]
[null,null,null,null,null,null,null,null,null,null,null,null,null,null,null,null,null,0,0,0,0]
[null,null,null,null,null,null,null,null,null,null,null,null,null,null,null,null,null,0,{"$f":"COUNTIF(C31:Q31,(\"g\"))","v":0},{"$f":"COUNTIF(C31:Q31,(\"c\"))","v":0},{"$f":"COUNTIF(C31:Q31,\"abs\")","v":0}]
[null,null,null,null,null,null,null,null,null,null,null,null,null,null,null,null,null,0,0,0,0]
[null,null,null,null,null,null,null,null,null,null,null,null,null,null,null,null,null,0,0,0,0]
[null,null,null,null,null,null,null,null,null,null,null,null,null,null,null,null,null,0,0,0,0]
[null,null,null,null,null,null,null,null,null,null,null,null,null,null,null,null,null,0,0,0,0]
[null,null,null,null,null,null,null,null,null,null,null,null,null,null,null,null,null,0,0,0,0]
[null,null,null,null,null,null,null,null,null,null,null,null,null,null,null,null,null,0,0,0,0]
[null,null,null,null,null,null,null,null,null,null,null,null,null,null,null,null,null,0,0,0,0]
[null,null,null,null,null,null,null,null,null,null,null,null,null,null,null,null,null,0,0,0,0]
[null,null,null,null,null,null,null,null,null,null,null,null,null,null,null,null,null,0,0,0,0]
[null,null,null,null,null,null,null,null,null,null,null,null,null,null,null,null,null,0,0,0,0]
[null,null,null,null,null,null,null,null,null,null,null,null,null,null,null,null,null,0,0,0,0]
[null,null,null,null,null,null,null,null,null,null,null,null,null,null,null,null,null,0,0,0,0]
[null,null,null,null,null,null,null,null,null,null,null,null,null,null,null,null,null,0,0,0,0]
[null,null,null,null,null,null,null,null,null,null,null,null,null,null,null,null,null,0,0,0,0]
[null,null,null,null,null,null,null,null,null,null,null,null,null,null,null,null,null,0,0,0,0]
[null,null,null,null,null,null,null,null,null,null,null,null,null,null,null,null,null,0,0,0,0]
[null,null,null,null,null,null,null,null,null,null,null,null,null,null,null,null,null,0,0,0,0]
[null,null,null,null,null,null,null,null,null,null,null,null,null,null,null,null,null,0,0,0,0]
[null,null,null,null,null,null,null,null,null,null,null,null,null,null,null,null,null,0,0,0,0]
[null,null,null,null,null,null,null,null,null,null,null,null,null,null,null,null,null,0,0,0,0]
[null,null,null,null,null,null,null,null,null,null,null,null,null,null,null,null,null,0,0,0,0]
[null,null,null,null,null,null,null,null,null,null,null,null,null,null,null,null,null,0,0,0,0]
[null,null,null,null,null,null,null,null,null,null,null,null,null,null,null,null,null,0,0,0,0]
[null,null,null,null,null,null,null,null,null,null,null,null,null,null,null,null,null,0,0,0,0]
[null,null,null,null,null,null,null,null,null,null,null,null,null,null,null,null,null,0,0,0,0]
[null,null,null,null,null,null,null,null,null,null,null,null,null,null,null,null,null,0,0,0,0]
[null,null,null,null,null,null,null,null,null,null,null,null,null,null,null,null,null,0,0,0,0]
[null,null,null,null,null,null,null,null,null,null,null,null,null,null,null,null,null,0,0,0,0]
[null,null,null,null,null,null,null,null,null,null,null,null,null,null,null,null,null,0,0,0,0]
[null,null,null,null,null,null,null,null,null,null,null,null,null,null,null,null,null,0,0,0,0]
[null,null,null,null,null,null,null,null,null,null,null,null,null,null,null,null,null,0,0,0,0]
[null,null,null,null,null,null,null,null,null,null,null,null,null,null,null,null,null,0,0,0,0]
[null,null,null,null,null,null,null,null,null,null,null,null,null,null,null,null,null,0,0,0,0]
[null,null,null,null,null,null,null,null,null,null,null,null,null,null,null,null,null,0,0,0,0]
[null,null,null,null,null,null,null,null,null,null,null,null,null,null,null,null,null,0,0,0,0]
[null,null,null,null,null,null,null,null,null,null,null,null,null,null,null,null,null,0,0,0,0]
[null,null,null,null,null,null,null,null,null,null,null,null,null,null,null,null,null,0,0,0,0]
[null,null,null,null,null,null,null,null,null,null,null,null,null,null,null,null,null,0,0,0,0]
[null,null,null,null,null,null,null,null,null,null,null,null,null,null,null,null,null,{"$f":"somcoul(C70:Q70,\"rouge\")","v":0},0,0,{"$f":"COUNTIF(C70:Q70,\"abs\")","v":0}]
[null,null,null,null,null,null,null,null,null,null,null,null,null,null,null,null,null,0,0,0,0]
[null,null,null,null,null,null,null,null,null,null,null,null,null,null,null,null,null,0,0,0,0]
[null,null,null,null,null,null,null,null,null,null,null,null,null,null,null,null,null,0,0,0,0]
[null,null,null,null,null,null,null,null,null,null,null,null,null,null,null,null,null,0,0,0,0]
[null,null,null,null,null,null,null,null,null,null,null,null,null,null,null,null,null,0,0,0,0]
[null,null,null,null,null,null,null,null,null,null,null,null,null,null,null,null,null,0,0,0,0]
[null,null,null,null,null,null,null,null,null,null,null,null,null,null,null,null,null,0,0,0,0]
[null,null,null,null,null,null,null,null,null,null,null,null,null,null,null,null,null,0,0,0,0]
[null,null,null,null,null,null,null,null,null,null,null,null,null,null,null,null,null,0,0,0,0]
[null,null,null,null,null,null,null,null,null,null,null,null,null,null,null,null,null,0,0,0,0]
[null,null,null,null,null,null,null,null,null,null,null,null,null,null,null,null,null,0,0,0,0]
[null,null,null,null,null,null,null,null,null,null,null,null,null,null,null,null,null,0,0,0,0]
[null,null,null,null,null,null,null,null,null,null,null,null,null,null,null,null,null,0,0,0,0]
[null,null,null,null,null,null,null,null,null,null,null,null,null,null,null,null,null,0,0,0,0]
[null,null,null,null,null,null,null,null,null,null,null,null,null,null,null,null,null,0,0,0,0]
[null,null,null,null,null,null,null,null,null,null,null,null,null,null,null,null,null,0,0,0,0]
[null,null,null,null,null,null,null,null,null,null,null,null,null,null,null,null,null,0,0,0,0]
[null,null,null,null,null,null,null,null,null,null,null,null,null,null,null,null,null,0,0,0,0]
[null,null,null,null,null,null,null,null,null,null,null,null,null,null,null,null,null,0,0,0,0]
[null,null,null,null,null,null,null,null,null,null,null,null,null,null,null,null,null,0,0,0,0]
[null,null,null,null,null,null,null,null,null,null,null,null,null,null,null,null,null,0,0,0,0]
[null,null,null,null,null,null,null,null,null,null,null,null,null,null,null,null,null,0,0,0,0]
[null,null,null,null,null,null,null,null,null,null,null,null,null,null,null,null,null,0,0,0,0]
[null,null,null,null,null,null,null,null,null,null,null,null,null,null,null,null,null,0,0,0,{"$f":"COUNTIF(C94:Q94,\"abs\")","v":0}]
[null,"Totaux",{"$f":"COUNTIF(C5:C94,\"abs\")","v":0},null,null,{"$f":"COUNTIF(F5:F94,\"abs\")","v":0},null,null,{"$f":"COUNTIF(I5:I94,\"abs\")","v":0},null,null,{"$f":"COUNTIF(L5:L94,\"abs\")","v":0},null,null,{"$f":"COUNTIF(O5:O94,\"abs\")","v":0},null,null,{"$f":"SUM(R5:R94)","v":3},{"$f":"SUM(S5:S94)","v":2},{"$f":"SUM(T5:T94)","v":2},{"$f":"SUM(U5:U94)","v":0}]
[null,null,{"$f":"somcoul(C5:C94,\"rouge\")","v":3},{"$f":"COUNTIF(D5:D94,\"g\")","v":2},{"$f":"COUNTIF(E5:E94,\"c\")","v":2},{"$f":"somcoul(F5:F94,\"rouge\")","v":0},{"$f":"COUNTIF(G5:G94,\"g\")","v":0},{"$f":"COUNTIF(H5:H94,\"c\")","v":0},{"$f":"somcoul(I5:I94,\"rouge\")","v":0},{"$f":"COUNTIF(J6:J94,\"g\")","v":0},{"$f":"COUNTIF(K5:K94,\"c\")","v":0},{"$f":"somcoul(L5:L94,\"rouge\")","v":0},{"$f":"COUNTIF(M5:M94,\"g\")","v":0},{"$f":"COUNTIF(N6:N94,\"c\")","v":0},{"$f":"somcoul(O5:O94,\"rouge\")","v":0},{"$f":"COUNTIF(P5:P94,\"g\")","v":0},{"$f":"COUNTIF(Q5:Q94,\"c\")","v":0}]